Cogmind - Beta 13 @@@ ROGUE MODE // 2024.08.02 @ 19:58:59 // Winter2019/RPGLIKE Player: Sionnis Result: Destroyed by H-71 Marshal with Heavy Mass Driver Performance ------------- Evolutions (6) 3000 Regions Visited (22) 4400 Robots Destroyed (415) 2075 Value Destroyed (17009) 17009 Prototype IDs (57) 1140 Alien Tech Used (1) 200 Bonus (8979) 8979 TOTAL SCORE: 36803 Bonus ------- Triggered High Security 500 High Alert Combat Kills 3391 Follower Combat Kills 1811 Network Hubs Disabled 800 Met Data Miner 300 Met Imprinter 300 Destroyed Z-Imprinter 1000 Built Enhanced Grunts 300 A7 Reached Mainframe 300 Met R17 at Cetus 500 Friendly Fire -223 Cogmind --------- Core Integrity 0/850 Matter 300/300 Energy 130/1700 System Corruption 4% Temperature Cool (0) Movement Hovering (20) Location -4/Factory Parts ------- > --- POWER (4) -------- Backup Power III Hybrid Fission Core Hybrid Fission Core Zionite Light DM Reactor > --- PROPULSION (6) --- Cooled Gravmag System Cooled Gravmag System Cooled Gravmag System Cooled Gravmag System Cooled Gravmag System Zionite Glidesys II > --- UTILITY (10) ----- Zionite Metafield Generator Advanced Signal Interpreter Experimental Armor Integrity Analyzer Microactuators Advanced Actuator Array Advanced Reaction Control System Centrium Medium Armor Plating Advanced Hacking Suite > --- WEAPON (5) ------- Mini Smartbomb Launcher Plasma Sword Plasma Sword Plasma Sword > --- INVENTORY (4) ---- Advanced Hacking Suite Advanced Hacking Suite Advanced System Restoration Module Plasma Sword Peak State ------------ > --- POWER ------------ Backup Power III Hybrid Fission Core Hybrid Fission Core Zionite Light DM Reactor > --- PROPULSION ------- Cooled Gravmag System Cooled Gravmag System Cooled Gravmag System Cooled Gravmag System Cooled Gravmag System Zionite Glidesys II > --- UTILITY ---------- Zionite Metafield Generator Long-range Sensor Array Experimental Signal Interpreter Experimental Armor Integrity Analyzer Microactuators Advanced Actuator Array Advanced Reaction Control System Centrium Medium Armor Plating Improved Force Field Advanced Hacking Suite > --- WEAPON ----------- Plasma Sword Plasma Sword Plasma Sword Plasma Sword Plasma Sword > --- INVENTORY -------- Advanced Hacking Suite Advanced Hacking Suite Advanced System Restoration Module Mini Smartbomb Launcher [Rating: 175] Favorites ----------- Power Hybrid Fission Core Engine Light Angular Momentum Engine Power Core Hybrid Fission Core Reactor Zionite Light DM Reactor Propulsion Airjet Treads Light Treads Hover Unit Airjet Utility Microactuators Device Microactuators Storage Advanced Energy Well Processor Improved Signal Interpreter Hackware Advanced Hacking Suite Protection Layered Medium Armor Plating Weapon Katana Energy Gun Small Laser Energy Cannon Ion Cannon Ballistic Gun Minigun Ballistic Cannon Light Cannon Launcher Mini Smartbomb Launcher Special Weapon Plasma Cutter Impact Weapon Thunder Hammer Slashing Weapon Katana Piercing Weapon Spear Build | -11 -10 -10 -10 -9 -8 -7 -7 -7 -7 -6 -6 -6 -6 -6 -6 -5 -5 -5 -5 -5 -5 -4 ------- Run | Yrd Mat Min Exi Min Mat Fac Low Low Dat Pro Fac Low Low Zio Dee Pro Fac Ext Cet Arc Hub Fac Slots Evolved 20 | 3 1 1 . 1 4 3 . 1 . 2 1 1 . . . . . 1 . . . 1 Power 3 | . . . . . . . . . . 1 . 1 . . . . . . . . . 1 Propulsion 5 | 1 . . . . 2 1 . . . . 1 . . . . . . . . . . . Utility 8 | 1 1 . . 1 1 1 . 1 . 1 . . . . . . . 1 . . . . Weapon 4 | 1 . 1 . . 1 1 . . . . . . . . . . . . . . . . Parts Attached 241 | 5 8 7 . 4 35 34 3 7 6 10 20 3 3 13 28 1 17 13 1 . 10 13 Power 27 | 1 1 1 . 1 3 2 . . . 1 4 1 . . 2 . 4 . . . . 6 Engine 9 | 1 . 1 . 1 3 1 . . . . 2 . . . . . . . . . . . Core 12 | . 1 . . . . 1 . . . 1 2 1 . . . . 2 . . . . 4 Reactor 6 | . . . . . . . . . . . . . . . 2 . 2 . . . . 2 Propulsion 44 | 2 . . . . 9 8 . 1 . . 12 1 . . 6 . . . . . 5 . Treads 4 | 2 . . . . 2 . . . . . . . . . . . . . . . . . Leg . | . . . . . . . . . . . . . . . . . . . . . . . Wheel . | . . . . . . . . . . . . . . . . . . . . . . . Hover 40 | . . . . . 7 8 . 1 . . 12 1 . . 6 . . . . . 5 . Flight . | . . . . . . . . . . . . . . . . . . . . . . . Utility 107 | . 4 2 . 2 6 13 3 5 6 6 2 1 2 8 19 1 10 10 1 . . 6 Device 56 | . 1 . . . 4 6 2 4 3 4 . 1 2 . 11 1 8 6 . . . 3 Storage 4 | . . . . . . . . . 1 2 . . . . 1 . . . . . . . Processor 17 | . 2 1 . . 1 1 1 1 . . 2 . . 7 . . . . . . . 1 Hackware 2 | . . . . . . . . . . . . . . . . . 1 . . . . 1 Protection 28 | . 1 1 . 2 1 6 . . 2 . . . . 1 7 . 1 4 1 . . 1 Artifact . | . . . . . . . . . . . . . . . . . . . . . . . Weapon 63 | 2 3 4 . 1 17 11 . 1 . 3 2 . 1 5 1 . 3 3 . . 5 1 Energy Gun 6 | 1 . . . . 5 . . . . . . . . . . . . . . . . . Energy Cannon 4 | . . . . . 4 . . . . . . . . . . . . . . . . . Ballistic Gun 6 | 1 2 1 . 1 1 . . . . . . . . . . . . . . . . . Ballistic Cannon 7 | . 1 2 . . 4 . . . . . . . . . . . . . . . . . Launcher 3 | . . . . . . . . . . . . . . . . . 1 1 . . . 1 Special Weapon 2 | . . . . . . 2 . . . . . . . . . . . . . . . . Impact Weapon 11 | . . 1 . . 2 4 . . . 1 1 . . 2 . . . . . . . . Slashing Weapon 23 | . . . . . 1 4 . 1 . 2 1 . 1 3 1 . 2 2 . . 5 . Piercing Weapon 1 | . . . . . . 1 . . . . . . . . . . . . . . . . Special Melee Weapon . | . . . . . . . . . . . . . . . . . . . . . . . Unidentified Prototypes 33 | . . . . . 8 . 1 . 2 . 2 . . 4 10 . 2 . 1 . 2 1 Parts Lost 2 | . . . . . . . . . . . . . . . . . . 1 . . . 1 Power . | . . . . . . . . . . . . . . . . . . . . . . . Propulsion . | . . . . . . . . . . . . . . . . . . . . . . . Utility 2 | . . . . . . . . . . . . . . . . . . 1 . . . 1 Weapon . | . . . . . . . . . . . . . . . . . . . . . . . Highest Loss Streak 1 | . . . . . . . . . . . . . . . . . . 1 . . . 1 To Critical Strikes . | . . . . . . . . . . . . . . . . . . . . . . . Average Slot Usage (%) 96 | . 98 95 100 97 93 93 100 98 100 93 99 99 96 99 97 95 94 96 100 100 100 97 Engine 3 | . 2 6 11 10 7 5 5 5 5 . 2 . . . . . . . . . . 2 Core 4 | . 10 4 . . . . . . . 3 6 13 13 13 8 8 8 8 8 8 8 7 Treads 6 | . 26 22 22 20 10 . . . . . . . . . . . . . . . . . Hover 18 | . . . . . 15 28 28 26 26 23 27 26 26 26 25 26 26 25 25 25 25 24 Device 17 | . 11 11 11 10 18 20 22 21 21 19 18 20 21 18 16 19 17 18 25 25 25 23 Processor 11 | . 13 11 11 10 10 10 5 12 15 14 13 13 13 15 15 10 8 8 8 8 8 7 Protection 6 | . 6 11 11 15 8 5 5 5 5 4 4 4 4 3 3 4 4 3 4 4 4 4 Ballistic Gun 3 | . 14 11 11 16 . . . . . . . . . . . . . . . . . . Ballistic Cannon 4 | . 5 17 22 14 7 . . . . . . . . . . . . . . . . . Impact Weapon 1 | . . . . . 4 5 5 5 5 1 . . . 3 1 . . . . . . . Slashing Weapon 12 | . . . . . 4 14 16 19 21 20 21 20 18 17 19 21 20 20 20 20 20 19 Naked Turns . | . . . . . . . . . . . . . . . . . . . . . . . Heaviest Build 80 | 7 14 25 24 27 34 42 42 47 48 49 59 67 64 65 66 69 69 77 73 73 73 80 Greatest Support 106 | 40 40 40 40 40 62 47 47 48 48 48 66 68 72 64 86 86 86 86 86 86 106 81 Greatest Overweight (x) 5 | . . . . . 2 1 . . . 1 1 1 . 1 1 . . 5 . . . . Average Overweight (x) . | . . . . . . . . . . . . . . . . . . . . . . . Largest Inventory Capacity 4 | 1 1 3 3 3 3 3 3 3 3 3 3 3 3 3 3 3 4 4 4 4 4 4 Average Capacity 2 | . 1 1 3 3 3 3 3 3 3 3 3 3 3 3 3 3 3 4 4 4 4 4 Most Carried 4 | 1 1 3 3 3 3 3 3 3 3 3 3 3 3 3 3 3 4 4 3 4 4 4 Average Carried 2 | . . 1 3 2 2 2 2 3 2 2 2 2 2 2 3 2 3 3 3 3 4 4 Final Capacity 4 | 1 1 3 3 3 3 3 3 3 3 3 3 3 3 3 3 3 4 4 4 4 4 4 Final Carried 4 | 1 1 3 3 2 3 3 3 3 3 3 3 3 2 3 3 2 4 3 3 4 4 4 Class Distribution -------------------- 33% | Hacker-Scout 25% | Scavenger-Scout 14% | Gunner 10% | Mutant 4% | Hacker-Gladiator 4% | Scavenger-Gladiator Dominant Class ---------------- Mutant | -10/Materials Gunner | -10/Mines Gunner | -10/Exiles Gunner | -9/Mines Scavenger-Scout | -8/Materials Scavenger-Scout | -7/Factory Hacker-Scout | -7/Lower Caves Hacker-Scout | -7/Lower Caves Scavenger-Scout | -7/Data Miner Scavenger-Scout | -6/Proximity Caves Scavenger-Scout | -6/Factory Hacker-Gladiator | -6/Lower Caves Hacker-Scout | -6/Lower Caves Hacker-Scout | -6/Zion Hacker-Scout | -6/Deep Caves Scavenger-Scout | -5/Proximity Caves Hacker-Scout | -5/Factory Hacker-Scout | -5/Extension Commander-Scout | -5/Cetus Commander-Scout | -5/Archives Hacker-Scout | -5/Hub_04(d) Hacker-Scout | -4/Factory Resources | -11 -10 -10 -10 -9 -8 -7 -7 -7 -7 -6 -6 -6 -6 -6 -6 -5 -5 -5 -5 -5 -5 -4 ----------- Run | Yrd Mat Min Exi Min Mat Fac Low Low Dat Pro Fac Low Low Zio Dee Pro Fac Ext Cet Arc Hub Fac Matter Collected 4487 | 195 656 397 . 295 758 371 30 50 90 100 200 30 30 40 370 10 245 245 20 . 100 255 Remotely . | . . . . . . . . . . . . . . . . . . . . . . . Salvage Created 17935 | . 461 290 . 162 1397 1666 143 146 239 714 2626 779 682 . 358 432 2918 1311 252 175 1207 1977 Parts 922 | . 26 33 . 15 71 99 . 7 20 38 107 36 31 . 46 30 109 75 10 14 39 116 Haulers Intercepted 29 | . 2 . . . 4 5 . . . . 4 . . . . . 6 . . . 2 6 Recyclers Shooed 3 | . 2 . . 1 . . . . . . . . . . . . . . . . . . Parts Field Recycled . | . . . . . . . . . . . . . . . . . . . . . . . Retrieved Matter . | . . . . . . . . . . . . . . . . . . . . . . . Parts Self-Destructed 144 | . . . . . . . . 5 . 42 . 36 31 . . 30 . . . . . . Prevented 5 | . . . . . . . . 2 . 1 . . 2 . . . . . . . . . Kills | -11 -10 -10 -10 -9 -8 -7 -7 -7 -7 -6 -6 -6 -6 -6 -6 -5 -5 -5 -5 -5 -5 -4 ------- Run | Yrd Mat Min Exi Min Mat Fac Low Low Dat Pro Fac Low Low Zio Dee Pro Fac Ext Cet Arc Hub Fac Combat Hostiles Destroyed 333 | . 7 14 . 13 31 34 2 6 4 19 38 17 11 . 14 11 34 24 4 2 16 32 Melee 253 | . . . . . 14 28 1 4 3 17 38 17 11 . 14 11 31 18 4 2 16 24 Guns 18 | . 6 6 . 5 1 . . . . . . . . . . . . . . . . . Cannons 31 | . 1 8 . 8 13 1 . . . . . . . . . . . . . . . . AOE 16 | . . . . . . . . . . . . . . . . . 3 6 . . . 7 Classes Destroyed 24 | . 5 2 . 1 5 2 1 . . 4 1 . . . 1 . . 1 . . . 1 Worker 6 | . . . . . 2 1 . . . . . . . . . . . . . . 1 2 Builder 9 | . 1 1 . . 1 1 . . . . 2 . . . . . 1 . . . . 2 Tunneler 2 | . . . . . . . . . . . 1 . . . . . . . . . . 1 Hauler 29 | . 2 . . . 4 5 . . . . 4 . . . . . 6 . . . 2 6 Recycler 9 | . 1 1 . . . 2 . . . . 1 . . . . . 3 1 . . . . Minesweeper 2 | . . . . . . . 1 . . 1 . . . . . . . . . . . . Mechanic 2 | . . . . . 1 . . . . . . . . . . . . 1 . . . . Operator 5 | . . . . . 1 1 . . . . . . . . . . 1 . . 1 1 . Drone 2 | . . . . . . . . . . 2 . . . . . . . . . . . . Watcher 29 | . 2 . . . 5 3 . . . . 2 . . . . . 7 3 1 . 1 5 Swarmer 72 | . . 3 . 4 11 . . 4 . 5 11 11 . . . 5 4 4 . . . 10 Cutter 1 | . . . . . . . . . . . . . . . . . . . . . . 1 Saboteur 2 | . . . . . . . . . . 1 . . . . . . . . . . 1 . Grunt 135 | . 7 10 . . 12 20 2 . . 3 15 2 5 . . 3 18 10 . . 15 13 Brawler 8 | . . . . . 1 . . . . 1 1 2 1 . . 1 1 . . . . . Duelist 4 | . . . . . . . . . . 2 . . 1 . . . . 1 . . . . Sentry 45 | . . . . 2 6 6 . . . 2 7 2 1 . . 1 5 6 . 2 . 5 Demolisher 1 | . . . . . . . . . . . . . . . . . . 1 . . . . Specialist 3 | . . . . . . 2 . . . . . . . . . . . 1 . . . . Hunter 12 | . . . . . 1 4 . 1 . 1 2 . 2 . . . . 1 . . . . Programmer 14 | . . . . . . 2 . 1 . 1 1 . . . . . 6 . . . . 3 Behemoth 4 | . . . . . . . . . . 1 1 . 1 . . 1 . . . . . . Cetus Guard 4 | . . . . . . . . . . . . . . . . . . . 4 . . . Enhanced Grunt 4 | . . . . . . . . . 4 . . . . . . . . . . . . . Z-Light 9 | . . . . . . . . . . . . . . . 9 . . . . . . . Assembled 12 | . . 1 . 6 . . . . . . . . . . 5 . . . . . . . Thug 1 | . . . . 1 . . . . . . . . . . . . . . . . . . Best Kill Streak 15 | . 2 3 . 6 7 4 3 4 2 5 11 8 6 . 5 5 13 8 3 3 11 15 Combat Bots Only 11 | . 2 3 . 6 6 4 2 4 2 5 6 8 6 . 5 5 5 7 2 2 11 8 Max Kills in Single Turn 3 | . 2 1 . 2 2 1 1 1 1 2 1 1 1 . 2 1 2 3 1 1 1 3 Gunslinging . | . . . . . . . . . . . . . . . . . . . . . . . Exploded 3 | . . . . . . . . . . . . . . . . . 2 3 . . . 2 Melee 2 | . . . . . 1 1 1 1 1 2 1 1 1 . 2 1 2 1 1 1 1 2 Uniques/NPCs Destroyed 2 | . . . . 1 . . . . . . . . . . 1 . . . . . . . YI-UF0 (-9/Mines) Z-Imprinter (-6/Deep Caves) Combat | -11 -10 -10 -10 -9 -8 -7 -7 -7 -7 -6 -6 -6 -6 -6 -6 -5 -5 -5 -5 -5 -5 -4 -------- Run | Yrd Mat Min Exi Min Mat Fac Low Low Dat Pro Fac Low Low Zio Dee Pro Fac Ext Cet Arc Hub Fac Hostile Shots Fired 1312 | . 32 52 . 27 95 185 1 18 13 114 167 83 42 . 30 38 102 83 22 4 44 160 Missed 477 | . 10 12 . 8 31 67 . 4 1 33 66 26 13 . 12 18 29 23 13 3 24 84 Damage Taken 9548 | . 305 517 . 338 567 1163 15 187 389 1087 657 327 274 . 229 209 707 722 118 11 204 1522 Core 6505 | . 232 392 . 223 389 817 15 131 273 769 438 213 200 . 161 111 393 407 84 8 136 1113 Absorbed by Shields 4704 | . . . . . 112 . . 24 28 367 644 353 288 . 237 214 739 738 125 12 213 610 Redirected to Core 5459 | . 193 316 . 203 310 676 . 103 182 629 338 178 172 . 112 111 343 365 74 8 119 1027 Ignored by Resistances 1429 | . . . . . 37 117 1 9 103 107 116 99 69 . 48 35 108 188 32 3 42 315 Regen/Repaired (Parts) 9 | . . . . . 9 . . . . . . . . . . . . . . . . . Core Remaining (%) 91 | 100 . . . 100 79 . . . . 94 . . . . . 88 . . . . 88 . Volleys Fired 143 | . 47 29 . 20 34 . . . . . . . . . . . 3 5 . . . 5 Largest 3 | . 2 3 . 3 3 . . . . . . . . . . . 1 1 . . . 1 Hottest 157 | . 60 104 . 104 157 . . . . . . . . . . . 80 80 . . . 80 Shots Fired 342 | . 94 74 . 59 102 . . . . . . . . . . . 3 5 . . . 5 Gun 146 | . 80 29 . 32 5 . . . . . . . . . . . . . . . . . Cannon 183 | . 14 45 . 27 97 . . . . . . . . . . . . . . . . . Launcher 13 | . . . . . . . . . . . . . . . . . 3 5 . . . 5 Special . | . . . . . . . . . . . . . . . . . . . . . . . Kinetic 272 | . 69 74 . 59 70 . . . . . . . . . . . . . . . . . Thermal 57 | . 25 . . . 32 . . . . . . . . . . . . . . . . . Explosive 13 | . . . . . . . . . . . . . . . . . 3 5 . . . 5 Electromagnetic . | . . . . . . . . . . . . . . . . . . . . . . . Robot Hit Streak 15 | . 9 8 . 10 15 . . . . . . . . . . . . . . . . . Robot Miss Streak 4 | . 4 3 . 3 2 . . . . . . . . . . . . . . . . . Penetration Max . | . . . . . . . . . . . . . . . . . . . . . . . Secondary Targets . | . . . . . . . . . . . . . . . . . . . . . . . Shots Hit Robots 1280 | . 63 44 . 31 113 126 9 17 28 93 142 43 36 . 38 25 152 90 20 9 55 146 Core Hits 564 | . 26 20 . 21 43 39 1 4 11 26 70 19 16 . 19 14 65 63 12 4 23 68 Critical Kills 1 | . . . . . 1 . . . . . . . . . . . . . . . . . Critical Parts Destroyed 20 | . . . . . 4 9 3 1 1 2 . . . . . . . . . . . . Critical Strikes 164 | . 1 . . . 10 23 3 3 6 14 18 5 2 . 3 2 25 21 2 1 8 17 Burn 1 | . . . . . 1 . . . . . . . . . . . . . . . . . Blast 4 | . 1 . . . 3 . . . . . . . . . . . . . . . . . Smash 23 | . . . . . 5 9 3 1 2 3 . . . . . . . . . . . . Sever 136 | . . . . . 1 14 . 2 4 11 18 5 2 . 3 2 25 21 2 1 8 17 Melee Attacks 1457 | . . 9 . . 83 169 17 22 56 105 181 57 44 14 45 31 213 105 24 12 72 198 Impact 144 | . . 9 . . 37 51 8 5 5 10 10 . . 8 1 . . . . . . . Slashing 1309 | . . . . . 46 118 7 15 51 95 171 57 44 6 44 31 213 105 24 12 72 198 Piercing 4 | . . . . . . . 2 2 . . . . . . . . . . . . . . Sneak Attacks 113 | . . . . . 5 20 1 . 2 2 22 . 1 . 5 1 28 6 . 5 3 12 Combat Hostiles 40 | . . . . . 1 6 . . . . 11 . 1 . 5 1 5 5 . 4 . 1 Follow-up Attacks 470 | . . . . . 10 45 4 7 12 46 65 18 16 . 17 10 72 44 9 4 24 67 Damage Inflicted 57712 | . 779 899 . 640 3824 7016 627 738 1252 3634 6257 1519 1439 . 1931 1096 7472 5396 959 654 3028 8552 Guns 1294 | . 616 350 . 259 69 . . . . . . . . . . . . . . . . . Cannons 2564 | . 163 492 . 373 1536 . . . . . . . . . . . . . . . . . Explosions 2766 | . . . . . . . . . . . . . . . . . 330 1334 . . . 1102 Melee 51080 | . . 57 . . 2219 7016 627 738 1252 3634 6257 1519 1439 . 1931 1096 7142 4062 959 654 3028 7450 Ramming 8 | . . . . 8 . . . . . . . . . . . . . . . . . . Kinetic 3088 | . 577 842 . 632 1037 . . . . . . . . . . . . . . . . . Thermal 770 | . 202 . . . 568 . . . . . . . . . . . . . . . . . Explosive 2766 | . . . . . . . . . . . . . . . . . 330 1334 . . . 1102 Electromagnetic . | . . . . . . . . . . . . . . . . . . . . . . . Impact 5511 | . . 57 . . 1131 2236 506 257 196 571 480 . . . 77 . . . . . . . Slashing 45454 | . . . . . 1088 4780 66 421 1056 3063 5777 1519 1439 . 1854 1096 7142 4062 959 654 3028 7450 Piercing 115 | . . . . . . . 55 60 . . . . . . . . . . . . . . Highest Corruption 4 | . . . . . . 1 . 4 . . . . . . . . 4 2 . . . 4 Average Corruption 1 | . . . . . . 1 . 2 . . . . . . . . 1 1 . . . 2 Corruption Purged 14 | . . . . . . 3 . 4 . . . . . . . . 5 2 . . . . Corruption Blocked . | . . . . . . . . . . . . . . . . . . . . . . . Effects 8 | . . . . . . 5 . 1 . . . . . . . . . 1 . . . 1 Message Errors 4 | . . . . . . 2 . 1 . . . . . . . . . 1 . . . . Matter Fused 3 | . . . . . . 3 . . . . . . . . . . . . . . . . Data Loss (major) 1 | . . . . . . . . . . . . . . . . . . . . . . 1 Overload Shots . | . . . . . . . . . . . . . . . . . . . . . . . Overflow Damage 4455 | . . 17 . . 443 1263 463 213 140 322 235 80 25 . 220 20 409 60 . . 151 394 Projectiles 23 | . . . . . 23 . . . . . . . . . . . . . . . . . Explosions 43 | . . . . . . . . . . . . . . . . . 25 3 . . . 15 Melee 4389 | . . 17 . . 420 1263 463 213 140 322 235 80 25 . 220 20 384 57 . . 151 379 Knockbacks 38 | . . 7 . 1 15 7 1 . 1 1 5 . . . . . . . . . . . Impact 16 | . . . . . 2 6 1 . 1 1 5 . . . . . . . . . . . Kinetic 17 | . . 6 . 1 10 . . . . . . . . . . . . . . . . . Secondary 5 | . . 1 . . 3 1 . . . . . . . . . . . . . . . . Self-Inflicted Damage 66 | . . . . . . . . . . . . . . . . . 31 . . . . 35 Shots 4 | . . . . . . . . . . . . . . . . . 1 . . . . 3 Rammed 1 | . . . . 1 . . . . . . . . . . . . . . . . . . Targets Rammed 1 | . . . . 1 . . . . . . . . . . . . . . . . . . Kicked . | . . . . . . . . . . . . . . . . . . . . . . . Crushed . | . . . . . . . . . . . . . . . . . . . . . . . Highest Temperature 323 | . 189 315 . 200 323 . . . . 135 9 6 10 2 20 . 4 26 . . . 45 Average Temperature 48 | . 48 86 . 56 88 . . . . 65 5 2 2 2 4 . 2 9 . . . 16 Received Heat Transfer 2067 | . 171 219 . 27 189 234 9 . . 328 130 23 59 . 64 44 207 133 12 . 77 141 Effects 2 | . . . . 2 . . . . . . . . . . . . . . . . . . Interference 2 | . . . . 2 . . . . . . . . . . . . . . . . . . Siege Activations . | . . . . . . . . . . . . . . . . . . . . . . . Robots Corrupted . | . . . . . . . . . . . . . . . . . . . . . . . Combat Hostiles . | . . . . . . . . . . . . . . . . . . . . . . . Parts Fried 25 | . . . . . 7 13 2 . 2 . . . . . . . . . . . . 1 Impact Corruptions 59 | . . 1 . . 9 24 10 5 1 5 2 . . . 2 . . . . . . . Robots Melted . | . . . . . . . . . . . . . . . . . . . . . . . Combat Hostiles . | . . . . . . . . . . . . . . . . . . . . . . . Parts Melted 3 | . . . . . . . . . . . . . . . 1 . . . 1 . . 1 Heat Transferred 1449 | . 450 . . . 999 . . . . . . . . . . . . . . . . . Parts Sabotaged . | . . . . . . . . . . . . . . . . . . . . . . . Parts Stolen . | . . . . . . . . . . . . . . . . . . . . . . . Parts Stripped . | . . . . . . . . . . . . . . . . . . . . . . . Power Chain Reactions . | . . . . . . . . . . . . . . . . . . . . . . . Alert | -11 -10 -10 -10 -9 -8 -7 -7 -7 -7 -6 -6 -6 -6 -6 -6 -5 -5 -5 -5 -5 -5 -4 ------- Run | Yrd Mat Min Exi Min Mat Fac Low Low Dat Pro Fac Low Low Zio Dee Pro Fac Ext Cet Arc Hub Fac Peak Influence 2116 | . 202 141 . 193 510 705 . . . . 778 . . . . . 791 1385 1072 522 2116 1680 Initial 1100 | . . . . . . 231 . . . . 332 . . . . . 157 238 691 428 182 1100 Average 373 | . 47 43 . 58 237 440 . . . . 525 . . . . . 408 762 914 500 1282 1041 Maximum Alert Level 5 | . 1 . . . 2 3 . . . . 3 . . . . . 3 4 3 2 5 5 Low Security (%) 39 | 100 97 100 . 100 36 . . . . . . . . . . . 21 . . . 8 . Level 1 21 | . 2 . . . 46 47 . . . . 23 . . . . . 23 19 . . 10 . Level 2 22 | . . . . . 17 46 . . . . 62 . . . . . 46 19 3 100 7 . Level 3 11 | . . . . . . 5 . . . . 12 . . . . . 8 39 96 . 4 58 Level 4 4 | . . . . . . . . . . . . . . . . . . 21 . . 28 38 Level 5 . | . . . . . . . . . . . . . . . . . . . . . 18 2 High Security . | . . . . . . . . . . . . . . . . . . . . . 22 . Max Security . | . . . . . . . . . . . . . . . . . . . . . . . Squads Dispatched 66 | . 1 1 . . 3 11 . . . 1 9 . 1 . . . 8 4 . . 16 11 Investigation 32 | . 1 1 . . 2 5 . . . . 5 . . . . . 5 1 . . 10 2 Extermination 7 | . . . . . . 3 . . . . 1 . . . . . 1 . . . . 2 Reinforcement 14 | . . . . . 1 3 . . . . 1 . . . . . 2 . . . 4 3 Assault 11 | . . . . . . . . . . 1 1 . 1 . . . . 3 . . 1 4 Garrison 2 | . . . . . . . . . . . 1 . . . . . . . . . 1 . Intercept . | . . . . . . . . . . . . . . . . . . . . . . . Searches Triggered 1 | . . . . . . . . . . . 1 . . . . . . . . . . . Construction Impeded 2 | . . . . . 1 . . . . . . . . . . . . . . . 1 . Haulers Reinforced 4 | . . . . . . . . . . . 1 . . . . . 1 . . . 2 . Active Scanning Responses . | . . . . . . . . . . . . . . . . . . . . . . . Cargo Convoy Interrupts 1 | . . . . . . . . . . . . . . . . . 1 . . . . . Stealth | -11 -10 -10 -10 -9 -8 -7 -7 -7 -7 -6 -6 -6 -6 -6 -6 -5 -5 -5 -5 -5 -5 -4 --------- Run | Yrd Mat Min Exi Min Mat Fac Low Low Dat Pro Fac Low Low Zio Dee Pro Fac Ext Cet Arc Hub Fac Distress Signals 15 | . 3 . . . 1 1 . . . . 2 . . . . . . 3 2 . 1 2 Communications Jammed . | . . . . . . . . . . . . . . . . . . . . . . . Distress Signals . | . . . . . . . . . . . . . . . . . . . . . . . Times Spotted 467 | . 17 12 . 15 43 40 2 6 4 22 42 18 10 . 16 11 48 43 10 4 44 60 Peak Tracking Total 15 | . 4 3 . 4 5 5 2 4 2 5 6 5 9 . 3 5 7 7 5 3 13 15 Tactical Retreats 19 | . 1 . . . 3 1 . . . 1 2 1 1 . . . 4 1 . . 1 3 Traps | -11 -10 -10 -10 -9 -8 -7 -7 -7 -7 -6 -6 -6 -6 -6 -6 -5 -5 -5 -5 -5 -5 -4 ------- Run | Yrd Mat Min Exi Min Mat Fac Low Low Dat Pro Fac Low Low Zio Dee Pro Fac Ext Cet Arc Hub Fac Traps Triggered 12 | . 1 . . . . 2 . . . . 4 . . . . . . . . . 1 4 Indirectly . | . . . . . . . . . . . . . . . . . . . . . . . Trap Hack Attempts . | . . . . . . . . . . . . . . . . . . . . . . . Triggered . | . . . . . . . . . . . . . . . . . . . . . . . Disarmed 6 | . . . . . . . . . . . . . . . . . . 6 . . . . Reprogrammed . | . . . . . . . . . . . . . . . . . . . . . . . Reused . | . . . . . . . . . . . . . . . . . . . . . . . Traps Extracted . | . . . . . . . . . . . . . . . . . . . . . . . Installed . | . . . . . . . . . . . . . . . . . . . . . . . Triggered 4 | . . . . . . . . . . . 1 . 1 . . . 1 . . . 1 . Machines | -11 -10 -10 -10 -9 -8 -7 -7 -7 -7 -6 -6 -6 -6 -6 -6 -5 -5 -5 -5 -5 -5 -4 ---------- Run | Yrd Mat Min Exi Min Mat Fac Low Low Dat Pro Fac Low Low Zio Dee Pro Fac Ext Cet Arc Hub Fac Machines Disabled 8 | . . 1 . . 2 . . . 1 . . . . . 1 . . . . . 3 . Max in Single Turn 1 | . . 1 . . 1 . . . 1 . . . . . . . . . . . . . Garrison Access 6 | . . . . . . 2 . . . . 1 . . . . . 1 . . . 1 1 Network Hub 4 | . . . . . . . . . . . . . . . . . . . . . 4 . Machines Repaired . | . . . . . . . . . . . . . . . . . . . . . . . Machines Dismantled . | . . . . . . . . . . . . . . . . . . . . . . . Machines Sabotaged 4 | . . . . . . . . . . . . . . . . . . . . . 4 . Overloaded Fab Kills . | . . . . . . . . . . . . . . . . . . . . . . . Hacking | -11 -10 -10 -10 -9 -8 -7 -7 -7 -7 -6 -6 -6 -6 -6 -6 -5 -5 -5 -5 -5 -5 -4 --------- Run | Yrd Mat Min Exi Min Mat Fac Low Low Dat Pro Fac Low Low Zio Dee Pro Fac Ext Cet Arc Hub Fac Machines Accessed 121 | . 7 2 1 . 15 15 3 . 3 . 18 1 . 1 . . 17 17 1 . 9 11 Terminals 78 | . 6 1 . . 12 8 . . . . 9 . . . . . 11 16 1 . 9 5 Fabricators 9 | . . . . . . 2 . . . . 3 . . . . . 3 . . . . 1 Repair Stations 4 | . . . . . 1 . . . . . 1 . . . . . . . . . . 2 Recycling Units 12 | . 1 . . . 2 3 . . . . 3 . . . . . 1 1 . . . 1 Scanalyzers 3 | . . . . . . . . . . . 1 . . . . . 1 . . . . 1 Garrison Access 5 | . . . . . . 2 . . . . 1 . . . . . 1 . . . . 1 Total Hacks 353 | . 23 4 1 . 50 36 3 . 15 . 49 1 . 1 . . 50 34 1 . 23 62 Successful 208 | . 9 3 1 . 19 16 3 . 15 . 29 1 . 1 . . 30 26 1 . 17 37 Failed 143 | . 14 . . . 31 20 . . . . 20 . . . . . 19 8 . . 6 25 Catastrophic 24 | . 2 . . . 5 6 . . . . 4 . . . . . 4 . . . 2 1 Database Lockouts 2 | . . 1 . . . . . . . . . . . . . . 1 . . . . . Manual 143 | . 17 3 . . 29 17 . . . . 14 . . . . . 24 8 1 . 17 13 Terminals 256 | . 22 3 . . 44 25 . . . . 26 . . . . . 37 32 1 . 23 43 Fabricators 23 | . . . . . . 3 . . . . 8 . . . . . 7 . . . . 5 Repair Stations 9 | . . . . . 4 . . . . . 2 . . . . . . . . . . 3 Recycling Units 23 | . 1 . . . 2 6 . . . . 6 . . . . . 2 2 . . . 4 Scanalyzers 13 | . . . . . . . . . . . 5 . . . . . 3 . . . . 5 Garrison Access 7 | . . . . . . 2 . . . . 2 . . . . . 1 . . . . 2 Terminal Hacks 119 | . 5 3 1 . 11 5 3 . 15 . 10 1 . 1 . . 14 20 1 . 6 23 Record 7 | . . . 1 . . . . . 6 . . . . . . . . . . . . . Part Schematic 16 | . . 1 . . 2 . . . 5 . 1 . . 1 . . 3 2 . . . 1 Robot Schematic 1 | . . . . . . . . . 1 . . . . . . . . . . . . . Robot Analysis 7 | . 3 . . . 2 . . . . . . . . . . . . 2 . . . . Prototype ID Bank 10 | . 1 . . . 1 . . . 3 . . . . . . . 1 1 . . 1 2 Open Door 15 | . . 1 . . . . 3 . . . . 1 . . . . 1 8 1 . . . Level Access Points 1 | . . . . . . . . . . . . . . . . . . . . . 1 . Branch Access Points 3 | . . . . . . . . . . . 1 . . . . . 1 . . . . 1 Emergency Access Points 2 | . . . . . . . . . . . . . . . . . . . . . 1 1 Machine Index 2 | . . . . . . . . . . . . . . . . . 1 . . . . 1 Terminal Index 4 | . . . . . 1 1 . . . . . . . . . . . 1 . . 1 . Fabricator Index 2 | . . . . . . . . . . . 1 . . . . . 1 . . . . . Alert Level 9 | . . 1 . . 1 2 . . . . 2 . . . . . 1 . . . . 2 Unreport Threat 14 | . . . . . 2 1 . . . . 3 . . . . . 4 . . . . 4 Locate Traps 1 | . . . . . . . . . . . . . . . . . . 1 . . . . Disarm Traps 1 | . . . . . . . . . . . . . . . . . . 1 . . . . Security Status 1 | . . . . . . . . . . . . . . . . . . . . . . 1 Surveillance Status 1 | . . . . . . . . . . . . . . . . . . . . . . 1 Transport Status 2 | . . . . . . . . . . . . . . . . . . . . . . 2 Recall Reinforcements 1 | . . . . . . . . . . . . . . . . . . . . . . 1 Recall Assault 4 | . . . . . . . . . . . 1 . . . . . . 1 . . . 2 Hauler Manifests 8 | . 1 . . . 1 1 . . . . 1 . . . . . 1 1 . . 1 1 Registered Components 1 | . . . . . . . . . . . . . . . . . . . . . . 1 Registered Prototypes 2 | . . . . . . . . . . . . . . . . . . 1 . . . 1 Zone Layout 4 | . . . . . 1 . . . . . . . . . . . . 1 . . 1 1 Fabricator Hacks 18 | . . . . . . 3 . . . . 6 . . . . . 7 . . . . 2 Load Schematic 8 | . . . . . . 1 . . . . 3 . . . . . 3 . . . . 1 Build 10 | . . . . . . 2 . . . . 3 . . . . . 4 . . . . 1 Repair Station Hacks 5 | . . . . . 2 . . . . . 1 . . . . . . . . . . 2 Scan Component 1 | . . . . . 1 . . . . . . . . . . . . . . . . . Repair 1 | . . . . . 1 . . . . . . . . . . . . . . . . . Refit 3 | . . . . . . . . . . . 1 . . . . . . . . . . 2 Recycling Unit Hacks 12 | . 1 . . . 2 3 . . . . 3 . . . . . 1 1 . . . 1 Retrieve Components 12 | . 1 . . . 2 3 . . . . 3 . . . . . 1 1 . . . 1 Scanalyzer 7 | . . . . . . . . . . . 2 . . . . . 1 . . . . 4 Insert Component 4 | . . . . . . . . . . . 1 . . . . . 1 . . . . 2 Analyze 3 | . . . . . . . . . . . 1 . . . . . . . . . . 2 Garrison Access Hacks 5 | . . . . . . 2 . . . . 1 . . . . . 1 . . . . 1 Seal Access 5 | . . . . . . 2 . . . . 1 . . . . . 1 . . . . 1 Unauthorized Hacks 42 | . 3 . . . 4 3 . . . . 6 . . . . . 6 5 . . 11 4 Terminals 36 | . 3 . . . 4 3 . . . . 3 . . . . . 5 4 . . 11 3 Assimilate 6 | . . . . . 1 . . . . . . . . . . . 2 1 . . 2 . Botnet 16 | . 2 . . . 2 2 . . . . 2 . . . . . 2 2 . . 2 2 Operators 8 | . 1 . . . 1 1 . . . . 1 . . . . . 1 1 . . 1 1 Sabotage 6 | . . . . . . . . . . . . . . . . . . . . . 6 . Fabricators 2 | . . . . . . . . . . . 2 . . . . . . . . . . . Prioritize 2 | . . . . . . . . . . . 2 . . . . . . . . . . . Repair Stations . | . . . . . . . . . . . . . . . . . . . . . . . Recycling Units 4 | . . . . . . . . . . . 1 . . . . . 1 1 . . . 1 Reject 4 | . . . . . . . . . . . 1 . . . . . 1 1 . . . 1 Scanalyzers . | . . . . . . . . . . . . . . . . . . . . . . . Garrison Access . | . . . . . . . . . . . . . . . . . . . . . . . Data Cores Recovered 1 | . . . . . . . . . . . . . . . . . . 1 . . . . Used . | . . . . . . . . . . . . . . . . . . . . . . . Hacking Detections 81 | . 7 . . . 12 11 . . . . 15 . . . . . 15 9 . . 5 7 Full Trace Events 20 | . . . . . 2 5 . . . . 4 . . . . . 5 1 . . 2 1 Feedback Events . | . . . . . . . . . . . . . . . . . . . . . . . Feedback Blocked . | . . . . . . . . . . . . . . . . . . . . . . . Robot Schematics Acquired 4 | . . . . . . . . . 1 . . . . 3 . . . . . . . . Robots Built . | . . . . . . . . . . . . . . . . . . . . . . . Authchips . | . . . . . . . . . . . . . . . . . . . . . . . Time . | . . . . . . . . . . . . . . . . . . . . . . . Total Robot Build Rating . | . . . . . . . . . . . . . . . . . . . . . . . Part Schematics Acquired 32 | . . 1 . . 2 . . . 5 . 1 . . 15 . . 3 2 . . . 3 Parts Built 15 | . . . . . . 3 . . . . 6 . . . . . 4 . . . . 2 Authchips . | . . . . . . . . . . . . . . . . . . . . . . . Time 645 | . . . . . . 242 . . . . 153 . . . . . 211 . . . . 39 Total Part Build Rating 87 | . . . . . . 12 . . . . 34 . . . . . 27 . . . . 14 Parts Repaired 1 | . . . . . 1 . . . . . . . . . . . . . . . . . Time 26 | . . . . . 26 . . . . . . . . . . . . . . . . . Parts Recycled . | . . . . . . . . . . . . . . . . . . . . . . . Recycled Matter . | . . . . . . . . . . . . . . . . . . . . . . . Retrieved Matter . | . . . . . . . . . . . . . . . . . . . . . . . Retrieved Components 74 | . 9 . . . 18 23 . . . . 12 . . . . . 1 10 . . . 1 Parts Scanalyzed 4 | . . . . . . . . . . . 1 . . . . . 1 . . . . 2 Part Schematics Acquired 2 | . . . . . . . . . . . . . . . . . . . . . . 2 Parts Damaged 2 | . . . . . . . . . . . 1 . . . . . 1 . . . . . Bothacking | -11 -10 -10 -10 -9 -8 -7 -7 -7 -7 -6 -6 -6 -6 -6 -6 -5 -5 -5 -5 -5 -5 -4 ------------ Run | Yrd Mat Min Exi Min Mat Fac Low Low Dat Pro Fac Low Low Zio Dee Pro Fac Ext Cet Arc Hub Fac Used RIF Installer . | . . . . . . . . . . . . . . . . . . . . . . . Robots Hacked . | . . . . . . . . . . . . . . . . . . . . . . . Non-combat . | . . . . . . . . . . . . . . . . . . . . . . . Combat . | . . . . . . . . . . . . . . . . . . . . . . . Robot Hacks Applied . | . . . . . . . . . . . . . . . . . . . . . . . Relay Couplers Released . | . . . . . . . . . . . . . . . . . . . . . . . Fabnet Peak Effective % . | . . . . . . . . . . . . . . . . . . . . . . . Robots Rewired 15 | . . . . . . . . . . 1 . . 2 . . . . 12 . . . . Allies Hacked 1 | . . . . . . . . . . . . . . . . . 1 . . . . . Hacks Repelled . | . . . . . . . . . . . . . . . . . . . . . . . Allies | -11 -10 -10 -10 -9 -8 -7 -7 -7 -7 -6 -6 -6 -6 -6 -6 -5 -5 -5 -5 -5 -5 -4 -------- Run | Yrd Mat Min Exi Min Mat Fac Low Low Dat Pro Fac Low Low Zio Dee Pro Fac Ext Cet Arc Hub Fac Total Allies 42 | . . . . 1 1 . . . . 1 . . 2 8 . . 2 22 5 . . . Largest Group 18 | . . . . 1 1 . . . . 1 . . 2 8 8 . 2 13 18 18 13 . Highest-Rated Group 966 | . . . . 31 10 . . . . 30 . . 58 214 214 . 36 494 966 966 695 . Highest-Rated Ally 159 | . . . . 31 10 . . . . 30 . . 29 31 31 . 26 159 159 159 96 . Total Orders 6 | . . . . . 2 . . . . . . . . . . . . 4 . . . . STAY 3 | . . . . . 1 . . . . . . . . . . . . 2 . . . . FOLLOW 3 | . . . . . 1 . . . . . . . . . . . . 2 . . . . Ally Attacks 334 | . . . . 2 . . . . . 7 . . 4 . 75 . . 62 35 9 140 . Total Damage 8039 | . . . . 42 . . . . . 191 . . 76 . 1126 . . 1530 812 289 3973 . Kills 62 | . . . . 1 . . . . . . . . . . 12 . . 16 5 2 26 . Allies Corrupted 3 | . . . . . . . . . . . . . . . . . . . . . 3 . Allies Melted . | . . . . . . . . . . . . . . . . . . . . . . . Intel | -11 -10 -10 -10 -9 -8 -7 -7 -7 -7 -6 -6 -6 -6 -6 -6 -5 -5 -5 -5 -5 -5 -4 ------- Run | Yrd Mat Min Exi Min Mat Fac Low Low Dat Pro Fac Low Low Zio Dee Pro Fac Ext Cet Arc Hub Fac Robot Analysis Total 7 | . 3 . . . 2 . . . . . . . . . . . . 2 . . . . Derelict Logs Recovered 11 | . . 1 . . . . 1 2 . 1 . 1 2 1 . 2 . . . . . . Drone Launches . | . . . . . . . . . . . . . . . . . . . . . . . Drone Recoveries . | . . . . . . . . . . . . . . . . . . . . . . . Exploration | -11 -10 -10 -10 -9 -8 -7 -7 -7 -7 -6 -6 -6 -6 -6 -6 -5 -5 -5 -5 -5 -5 -4 ------------- Run | Yrd Mat Min Exi Min Mat Fac Low Low Dat Pro Fac Low Low Zio Dee Pro Fac Ext Cet Arc Hub Fac Turns Passed 17230 | 58 1152 1550 554 961 1951 1721 508 463 284 961 1176 706 360 533 564 318 1300 844 299 71 170 726 Spaces Moved 22088 | 34 607 834 347 533 1597 1684 1062 921 219 1311 1611 1172 1027 1073 1121 961 2715 1138 222 114 324 1461 Core 5 | 3 . . . . . . . . . . . . . . . . . 2 . . . . Treads 2832 | 31 607 834 347 533 480 . . . . . . . . . . . . . . . . . Legs . | . . . . . . . . . . . . . . . . . . . . . . . Wheels . | . . . . . . . . . . . . . . . . . . . . . . . Hover 19251 | . . . . . 1117 1684 1062 921 219 1311 1611 1172 1027 1073 1121 961 2715 1136 222 114 324 1461 Flight . | . . . . . . . . . . . . . . . . . . . . . . . Fastest Speed 15 | 50 160 160 160 160 48 44 44 44 44 44 23 19 18 23 23 20 20 20 20 20 15 20 Average Speed 50 | 150 160 160 160 160 86 54 44 44 44 45 33 51 22 40 33 26 20 20 20 20 19 20 Slowest Speed 275 | 160 160 160 160 160 246 108 44 44 44 104 100 93 23 93 96 36 20 275 20 20 20 20 Overloaded Moves 15 | . . . . . . . . . . . . 6 5 . . . . . . . 4 . Propulsion Burnouts . | . . . . . . . . . . . . . . . . . . . . . . . Robots Hopped . | . . . . . . . . . . . . . . . . . . . . . . . Cave-ins Triggered . | . . . . . . . . . . . . . . . . . . . . . . . Exploration Rate (%) 73 | 3 95 99 71 66 77 32 96 99 81 99 35 99 97 88 72 99 59 88 83 76 43 32 Regions Visited 22 Branch Regions 16 Pre-discovered Areas 7 | . . 1 . . . . . . 1 1 . . . 3 . 1 . . . . . . Known Exits Taken 17 | . . . . . 1 1 1 1 1 1 1 1 1 1 1 1 1 1 1 1 1 . Unknown Exits Taken 5 | 1 1 1 1 1 . . . . . . . . . . . . . . . . . . Scrap Searched 38 | . . 1 . 2 . . 10 5 . 4 . 5 3 3 . 5 . . . . . . Spaces Dug 51 | . . . . . 7 4 2 2 . . 3 . . 2 . . 17 . . . 2 12 Terrain Destroyed 177 | . . 9 . 5 24 4 2 2 . . 3 . . 2 . . 45 33 . . 2 46 Melee 43 | . . . . . 2 4 2 2 . . 3 . . 2 . . 14 . . . 2 12 Projectile 36 | . . 9 . 5 22 . . . . . . . . . . . . . . . . . AOE 98 | . . . . . . . . . . . . . . . . . 31 33 . . . 34 Terrain Rammed . | . . . . . . . . . . . . . . . . . . . . . . . Walls Destroyed . | . . . . . . . . . . . . . . . . . . . . . . . Machines Disabled . | . . . . . . . . . . . . . . . . . . . . . . . Actions | -11 -10 -10 -10 -9 -8 -7 -7 -7 -7 -6 -6 -6 -6 -6 -6 -5 -5 -5 -5 -5 -5 -4 --------- Run | Yrd Mat Min Exi Min Mat Fac Low Low Dat Pro Fac Low Low Zio Dee Pro Fac Ext Cet Arc Hub Fac Total 26717 | 39 698 972 346 603 2041 2351 1094 965 369 1616 2138 1242 1121 1159 1269 992 3281 1654 461 153 385 1768 Wait 2770 | . 18 55 . 24 246 430 17 12 92 180 351 18 33 46 54 11 378 387 217 34 3 164 Move 22066 | 33 606 833 346 532 1596 1683 1061 920 218 1310 1610 1171 1026 1072 1120 960 2714 1137 221 113 323 1461 Hop . | . . . . . . . . . . . . . . . . . . . . . . . Pick Up 48 | 1 2 3 . 1 6 7 1 1 3 . 8 1 . 4 . . 7 1 . 1 1 . Fast Attach 165 | 5 8 5 . 4 32 18 3 4 3 2 11 1 . 12 21 . 9 5 1 . 10 11 Attach 16 | . . . . . 1 3 1 . . 3 2 1 1 1 . . 2 1 . . . . Detach 11 | . . . . . 2 2 . . . 3 . 1 . 1 1 . 1 . . . . . Swap 61 | . . 2 . . 2 13 . 3 3 5 7 1 2 . 7 1 6 7 . . . 2 Drop 191 | . 7 5 . 5 33 24 2 4 8 1 21 2 . 15 23 . 14 4 1 . 11 11 Fire 143 | . 47 29 . 20 34 . . . . . . . . . . . 3 5 . . . 5 Melee 750 | . . 9 . . 70 98 8 12 31 51 88 27 20 8 22 16 99 47 12 5 34 93 Ram . | . . . . . . . . . . . . . . . . . . . . . . . Kick . | . . . . . . . . . . . . . . . . . . . . . . . Crush 1 | . . . . 1 . . . . . . . . . . . . . . . . . . Escape Stasis 13 | . . . . . . 13 . . . . . . . . . . . . . . . . Rewire 49 | . . . . . . . . . . 9 . . 13 . . . 1 26 . . . . Trap . | . . . . . . . . . . . . . . . . . . . . . . . Miscellaneous 433 | . 10 31 . 16 19 60 1 9 11 52 40 19 26 . 21 4 47 34 9 . 3 21 Route ------- -11/Scrapyard -10/Materials (discovered 5 exits: [*Mat x3] / *Min x2) -10/Mines (discovered 3 exits: [*Mat x2] / *Exi) -10/Exiles (discovered 2 exits: [*Min x2]) -9/Mines (discovered 2 exits: *Mat x2) -8/Materials (discovered 2 exits: *Fac x2) -7/Factory (discovered 2 exits: *Fac / *Low) -7/Lower Caves -7/Lower Caves (discovered 2 exits: *Fac / *Dat) -7/Data Miner -6/Proximity Caves -6/Factory (discovered 2 exits: *Low x2) -6/Lower Caves (discovered 2 exits: *Low / *Zio) -6/Lower Caves (discovered 2 exits: *Fac / *Zio) -6/Zion (discovered 2 exits: *Dee / [*Pro]) -6/Deep Caves -5/Proximity Caves -5/Factory (discovered 7 exits: *Fac x3 / Upp x2 / *Ext x2) -5/Extension (discovered 3 exits: *Fac x2 / *Cet) -5/Cetus (discovered 2 exits: *Fac / *Arc) -5/Archives (discovered 3 exits: *Fac / *Hub x2) -5/Hub_04(d) (discovered 4 exits: *Fac x4) -4/Factory (discovered 3 exits: *Res / *Upp x2) History --------- Turn | Location | Event 17 | -11/Scrapyard | Upgraded with Propulsion slot (x1) 17 | -11/Scrapyard | Upgraded with Utility slot (x1) 17 | -11/Scrapyard | Upgraded with Weapon slot (x1) 31 | -11/Scrapyard | Discovered new exit (range 15) 59 | -11/Scrapyard | Entered Materials 72 | -10/Materials | Discovered new exit (range 15) 305 | -10/Materials | Build established: Mutant 553 | -10/Materials | Discovered new exit (range 8) 633 | -10/Materials | Upgraded with Utility slot (x1) 781 | -10/Materials | Discovered new exit (range 16) 990 | -10/Materials | Discovered new exit (range 8) 1099 | -10/Materials | Discovered new exit (range 16) 1211 | -10/Materials | Entered Mines 1213 | -10/Mines | Reached level 2 1247 | -10/Mines | Upgraded with Weapon slot (x1) 1270 | -10/Mines | Learned Materials terminal intel 1313 | -10/Mines | Deemed a non-threat by the Exiles lab entrance 1314 | -10/Mines | Discovered new exit (range 5) 1535 | -10/Mines | Discovered new exit (range 5) 1658 | -10/Mines | Central database locked down 1765 | -10/Mines | Met a Derelict shopkeep closing up shop 1895 | -10/Mines | Discovered new exit (range 6) 2077 | -10/Mines | Build established: Gunner 2115 | -10/Mines | Excavation squad dispatched 2115 | -10/Mines | A large section of the Mines collapsed 2299 | -10/Mines | Learned location of Storage (-8) 2411 | -10/Mines | Reached level 3 2761 | -10/Mines | Entered Exiles 2761 | -10/Exiles | Found Exiles lab abandoned 2784 | -10/Exiles | Discovered new exit (range 15) 3294 | -10/Exiles | Discovered new exit (range 14) 3315 | -10/Exiles | Entered Mines 3323 | -9/Mines | Escorted by a lone wolf Derelict 3329 | -9/Mines | Reached level 4 3394 | -9/Mines | Met a Derelict bent on vengeance 3497 | -9/Mines | Upgraded with Utility slot (x1) 3642 | -9/Mines | Discovered new exit (range 5) 3848 | -9/Mines | Discovered new exit (range 13) 3950 | -9/Mines | Destroyed YI-UF0 4052 | -9/Mines | Assembled infested the area 4276 | -9/Mines | Entered Materials 4277 | -8/Materials | Loaded intel: 12 terminal locations 4278 | -8/Materials | Reached level 5 4536 | -8/Materials | Upgraded with Utility slot (x1) 4657 | -8/Materials | Build established: Skirmisher 4666 | -8/Materials | Reached level 6 4714 | -8/Materials | Upgraded with Propulsion slot (x1) 4789 | -8/Materials | Upgraded with Propulsion slot (x1) 5580 | -8/Materials | Build established: Scavenger-Scout 5583 | -8/Materials | Discovered new exit (range 17) 5666 | -8/Materials | Reached level 7 5700 | -8/Materials | Upgraded with Weapon slot (x1) 5981 | -8/Materials | Repaired Hover Unit 6146 | -8/Materials | Discovered new exit (range 13) 6178 | -8/Materials | Reached level 8 6226 | -8/Materials | Identified exit to Factory 6227 | -8/Materials | Entered Factory 6229 | -7/Factory | Reached level 9 6231 | -7/Factory | Upgraded with Utility slot (x1) 6770 | -7/Factory | Build established: Scavenger-Gladiator 6869 | -7/Factory | Discovered new exit (range 6) 6870 | -7/Factory | Reached level 10 6872 | -7/Factory | Upgraded with Propulsion slot (x1) 6921 | -7/Factory | Identified exit to Lower Caves 7237 | -7/Factory | Fabricated Airjet (x2) 7262 | -7/Factory | Build established: Scavenger-Scout 7269 | -7/Factory | Reached level 11 7317 | -7/Factory | Upgraded with Weapon slot (x1) 7404 | -7/Factory | Discovered new exit (range 14) 7608 | -7/Factory | Fabricated Thunder Hammer (x1) 7616 | -7/Factory | Identified exit to Factory 7849 | -7/Factory | Reached level 12 7948 | -7/Factory | Entered Lower Caves 8036 | -7/Lower Caves | Learned Factory emergency access door positions 8252 | -7/Lower Caves | Build established: Hacker-Scout 8309 | -7/Lower Caves | Discovered new exit (range 16) 8381 | -7/Lower Caves | Found Alien Artifact 8381 | -7/Lower Caves | Identified Core Expander 8381 | -7/Lower Caves | Installed Core Expander, added new Utility slot 8456 | -7/Lower Caves | Identified exit to Lower Caves 8456 | -7/Lower Caves | Entered another Lower Caves area 8498 | -7/Lower Caves | Learned Factory stockpile data 8544 | -7/Lower Caves | Reached level 13 8563 | -7/Lower Caves | Upgraded with Utility slot (x1) 8600 | -7/Lower Caves | Discovered exit to Factory (range 17) 8762 | -7/Lower Caves | Learned Factory stockpile data 8845 | -7/Lower Caves | Discovered new exit (range 7) 8865 | -7/Lower Caves | Identified exit to Data Miner 8919 | -7/Lower Caves | Entered Data Miner 8919 | -7/Data Miner | Discovered new exit (range 6) 8929 | -7/Data Miner | Identified exit to Proximity Caves 8934 | -7/Data Miner | Met Data Miner 8943 | -7/Data Miner | Learned location of Section 7 (-2) 8943 | -7/Data Miner | Acquired the access code to Warlord's prototype stash 8950 | -7/Data Miner | Received God Mode back door access code from Data Miner 8964 | -7/Data Miner | Data Conduit disabled 9044 | -7/Data Miner | Found Prototype Device 9044 | -7/Data Miner | Identified Exp. Thermal Shield 9203 | -7/Data Miner | Entered Proximity Caves 9205 | -6/Proximity Caves | Reached level 14 9236 | -6/Proximity Caves | Learned location of Zion (-6) 9408 | -6/Proximity Caves | Reached level 15 9411 | -6/Proximity Caves | Upgraded with Power slot (x1) 9411 | -6/Proximity Caves | Upgraded with Utility slot (x1) 9438 | -6/Proximity Caves | Spotter reported a threat 9482 | -6/Proximity Caves | Spotted B-75 Beast 9562 | -6/Proximity Caves | Destroyed B-75 Beast 9687 | -6/Proximity Caves | Spotter reported a threat 9797 | -6/Proximity Caves | Attracted the attention of an 0b10 outpost 9809 | -6/Proximity Caves | Core integrity fell below 50% 9856 | -6/Proximity Caves | Build established: Scavenger-Scout 9950 | -6/Proximity Caves | Attracted the attention of an 0b10 checkpoint 10017 | -6/Proximity Caves | Discovered exit to Factory (range 16) 10164 | -6/Proximity Caves | Entered Factory 10166 | -6/Factory | Reached level 16 10168 | -6/Factory | Upgraded with Propulsion slot (x1) 10245 | -6/Factory | Reached level 17 10514 | -6/Factory | Search patrols dispatched 10671 | -6/Factory | Fabricated Linear Gravjet (x2) 10686 | -6/Factory | Reached level 18 10795 | -6/Factory | Fabricated Linear Gravjet (x2) 10849 | -6/Factory | Identified exit to Lower Caves 10864 | -6/Factory | First assault squad dispatched 11024 | -6/Factory | Fabricated Hyb. Fission Core (x2) 11086 | -6/Factory | Build established: Hacker-Scout 11256 | -6/Factory | Spotted B-75 Beast 11289 | -6/Factory | Destroyed B-75 Beast 11323 | -6/Factory | Garrison activated, responded to threat 11340 | -6/Factory | Entered Lower Caves 11341 | -6/Lower Caves | A Derelict revealed a hidden shortcut to a safe place 11342 | -6/Lower Caves | Reached level 19 11342 | -6/Lower Caves | Upgraded with Power slot (x1) 11343 | -6/Lower Caves | Identified exit to Zion 11367 | -6/Lower Caves | Attracted the attention of an 0b10 outpost 11725 | -6/Lower Caves | Build established: Hacker-Gladiator 11789 | -6/Lower Caves | Destroyed 8 combat bots 11923 | -6/Lower Caves | Attracted the attention of an 0b10 checkpoint 11934 | -6/Lower Caves | Learned Factory garrison access intel 11946 | -6/Lower Caves | Discovered new exit (range 6) 11947 | -6/Lower Caves | Identified exit to Lower Caves 12046 | -6/Lower Caves | Entered another Lower Caves area 12106 | -6/Lower Caves | Discovered new exit (range 14) 12109 | -6/Lower Caves | Encountered a Warlord checkpoint 12109 | -6/Lower Caves | Identified exit to Factory 12163 | -6/Lower Caves | Spotted B-75 Beast 12179 | -6/Lower Caves | Learned Factory trap positions 12188 | -6/Lower Caves | Destroyed B-75 Beast 12214 | -6/Lower Caves | Attracted the attention of an 0b10 outpost 12390 | -6/Lower Caves | Discovered exit to Zion (range 5) 12406 | -6/Lower Caves | Entered Zion 12408 | -6/Zion | Reached level 20 12418 | -6/Zion | Gained Derelict followers 12429 | -6/Zion | Discovered new exit (range 18) 12432 | -6/Zion | Gained Derelict followers 12767 | -6/Zion | Learned location of 1 exit from Lower Caves 12778 | -6/Zion | Found Prototype Processor 12778 | -6/Zion | Identified Spectral Analyzer 12783 | -6/Zion | Found Prototype Processor 12783 | -6/Zion | Identified Exp. Armor Integrity Analyzer 12785 | -6/Zion | Found Prototype Processor 12785 | -6/Zion | Identified Exp. Terrain Scan Processor 12787 | -6/Zion | Found Prototype Processor 12787 | -6/Zion | Identified Exp. Signal Interpreter 12908 | -6/Zion | Discovered new exit (range 5) 12908 | -6/Zion | Saw the warning signs outside the Deep Caves entrance 12909 | -6/Zion | Identified exit to Deep Caves 12939 | -6/Zion | Entered Deep Caves 12939 | -6/Deep Caves | Accompanied by 8 allies 13016 | -6/Deep Caves | Attacked by Z-Imprinter 13021 | -6/Deep Caves | Allies destroyed Z-Imprinter 13030 | -6/Deep Caves | Found Prototype Device 13030 | -6/Deep Caves | Identified Zio. Metafield Generator 13110 | -6/Deep Caves | Lost 7 allies 13147 | -6/Deep Caves | Build established: Hacker-Scout 13192 | -6/Deep Caves | Found Prototype Protection 13192 | -6/Deep Caves | Identified Zio. Weapon Casing 13223 | -6/Deep Caves | Z-Facility disabled 13265 | -6/Deep Caves | Found Prototype Protection 13265 | -6/Deep Caves | Identified Zio. Heavy Carapace 13438 | -6/Deep Caves | Discovered new exit (range 7) 13441 | -6/Deep Caves | Identified exit to Proximity Caves 13503 | -6/Deep Caves | Entered Proximity Caves 13505 | -5/Proximity Caves | Attracted the attention of an 0b10 checkpoint 13525 | -5/Proximity Caves | Build established: Scavenger-Scout 13575 | -5/Proximity Caves | Learned Factory interactive machine intel 13583 | -5/Proximity Caves | Spotted B-75 Beast 13592 | -5/Proximity Caves | Learned location of Armory (-3) 13653 | -5/Proximity Caves | Reached level 21 13675 | -5/Proximity Caves | Discovered exit to Factory (range 9) 13696 | -5/Proximity Caves | Destroyed B-75 Beast 13821 | -5/Proximity Caves | Entered Factory 13822 | -5/Factory | Loaded intel: 97 trap records 13824 | -5/Factory | Loaded intel: 54 interactive machine locations 13825 | -5/Factory | Loaded intel: 4 garrison access locations 14014 | -5/Factory | Fabricated Mni. Smartbomb Launcher (x1) 14020 | -5/Factory | Fabricated Adv. Reaction Control System (x1) 14025 | -5/Factory | Reached level 22 14160 | -5/Factory | Build established: Hacker-Scout 14195 | -5/Factory | Discovered new exit (range 6) 14196 | -5/Factory | Identified exit to Extension 14320 | -5/Factory | Fabricated Adv. Actuator Array (x1) 14480 | -5/Factory | Discovered new exit (range 10) 14482 | -5/Factory | Identified exit to Factory 14605 | -5/Factory | Discovered exit to Factory (range 5) 14662 | -5/Factory | Discovered exit to Factory (range 12) 14671 | -5/Factory | Central database locked down 14747 | -5/Factory | Identified exit to Upper Caves 14908 | -5/Factory | Cargo convoy interrupted 14918 | -5/Factory | Fabricated Lrn. Sensor Array (x1) 15121 | -5/Factory | Entered Extension 15121 | -5/Extension | Accompanied by 1 ally 15123 | -5/Extension | Reached level 23 15150 | -5/Extension | Rescued a captive Derelict 15151 | -5/Extension | Rescued a captive Derelict 15276 | -5/Extension | Rescued a captive Derelict 15277 | -5/Extension | Rescued a captive Derelict 15277 | -5/Extension | Rescued a captive Derelict 15278 | -5/Extension | Rescued a captive Derelict 15285 | -5/Extension | Rescued a captive Derelict 15421 | -5/Extension | First assault squad dispatched 15606 | -5/Extension | Destroyed 7 combat bots 15616 | -5/Extension | Lost 9 allies 15663 | -5/Extension | Spotted B-75 Beast 15675 | -5/Extension | Spotted B-75 Beast 15693 | -5/Extension | Allies destroyed B-75 Beast 15701 | -5/Extension | Allies destroyed B-75 Beast 15715 | -5/Extension | Discovered exit to Factory (range 3) 15743 | -5/Extension | Rescued A7 15753 | -5/Extension | Rescued a captive Derelict 15769 | -5/Extension | Reached level 24 15838 | -5/Extension | Rescued a captive Derelict 15843 | -5/Extension | Upgraded with Utility slot (x1) 15896 | -5/Extension | Discovered exit to Factory (range 10) 15896 | -5/Extension | Discovered new exit (range 6) 15907 | -5/Extension | Identified exit to Cetus 15965 | -5/Extension | Entered Cetus 15965 | -5/Cetus | Accompanied by 13 allies (A7) 15970 | -5/Cetus | Acquired a Cetus Manufacturing Module code from A7 15975 | -5/Cetus | Spotted Cetus Guard 15975 | -5/Cetus | Spotted Cetus Guard 15981 | -5/Cetus | Spotted Cetus Guard 15984 | -5/Cetus | Spotted Cetus Guard 15991 | -5/Cetus | Allies destroyed Cetus Guard 15992 | -5/Cetus | Allies destroyed Cetus Guard 15992 | -5/Cetus | Destroyed Cetus Guard 15995 | -5/Cetus | Destroyed Cetus Guard 16018 | -5/Cetus | Started Cetus Manufacturing Module 16021 | -5/Cetus | Escorted A7 to Cetus Mainframe 16043 | -5/Cetus | Manufactured an Enhanced Grunt 16068 | -5/Cetus | Manufactured an Enhanced Grunt 16093 | -5/Cetus | Manufactured an Enhanced Grunt 16118 | -5/Cetus | Manufactured an Enhanced Grunt 16143 | -5/Cetus | Manufactured an Enhanced Grunt 16150 | -5/Cetus | Discovered new exit (range 17) 16176 | -5/Cetus | Spotted Cetus Guard 16177 | -5/Cetus | Spotted Cetus Guard 16178 | -5/Cetus | Spotted Cetus Guard 16179 | -5/Cetus | Discovered exit to Factory (range 18) 16179 | -5/Cetus | Spotted Cetus Guard 16183 | -5/Cetus | Destroyed Cetus Guard 16188 | -5/Cetus | Destroyed Cetus Guard 16190 | -5/Cetus | Allies destroyed Cetus Guard 16191 | -5/Cetus | Allies destroyed Cetus Guard 16193 | -5/Cetus | Met Revision 17 16220 | -5/Cetus | Identified exit to Archives 16264 | -5/Cetus | Entered Archives 16264 | -5/Archives | Accompanied by 18 allies (A7) 16269 | -5/Archives | Received a hacking code to weaken MAIN.C 16278 | -5/Archives | Discovered new exit (range 18) 16286 | -5/Archives | Discovered new exit (range 18) 16296 | -5/Archives | Discovered exit to Factory (range 18) 16301 | -5/Archives | Unable to access archive contents 16305 | -5/Archives | Identified exit to Hub_04(d) 16314 | -5/Archives | Lost 4 allies 16335 | -5/Archives | Entered Hub_04(d) 16335 | -5/Hub_04(d) | Accompanied by 13 allies 16360 | -5/Hub_04(d) | Build established: Commander-Scout 16363 | -5/Hub_04(d) | Garrison activated, responded to threat 16377 | -5/Hub_04(d) | Reached level 25 16435 | -5/Hub_04(d) | Network Hub disabled 16441 | -5/Hub_04(d) | Network Hub disabled 16449 | -5/Hub_04(d) | Network Hub disabled 16467 | -5/Hub_04(d) | High security lockdown imminent 16493 | -5/Hub_04(d) | Network Hub disabled 16505 | -5/Hub_04(d) | Entered Factory 16505 | -4/Factory | Upgraded with Power slot (x1) 16522 | -4/Factory | Destroyed 11 combat bots 16542 | -4/Factory | Reached level 26 16654 | -4/Factory | Identified exit to Upper Caves 16690 | -4/Factory | Build established: Hacker-Scout 16717 | -4/Factory | Fabricated Imp. Force Field (x2) 16755 | -4/Factory | First assault squad dispatched 16825 | -4/Factory | Found Prototype Hackware 16825 | -4/Factory | Identified Exp. System Shield 17082 | -4/Factory | Core integrity fell below 50% 17123 | -4/Factory | Discovered new exit (range 7) 17139 | -4/Factory | Identified exit to Research 17148 | -4/Factory | Spotted B-86 Titan 17152 | -4/Factory | Core integrity fell below 20% 17231 | -4/Factory | Destroyed by H-71 Marshal with Heavy Mass Driver Last Messages --------------- K-01 Serf collects debris. U-05 Engineer lays Concrete. K-01 Serf collects debris. Plasma Sword follow-up attack on H-71 Marshal. U-05 Engineer lays Concrete. H-71 Marshal calls for reinforcements. ALERT: Hostile activity reported, dispatching reinforcements to area. Imp. Force Field blasted off. Knocked back. U-05 Engineer lays Concrete. K-01 Serf collects debris. Plasma Sword follow-up attack on H-71 Marshal. Drone sends a signal. Knocked back. U-05 Engineer lays Concrete. Penetrated by Slug. Lrn. Sensor Array destroyed. Plasma Sword blasted off. Map ----- +----------------------------------------------------+ | #???????????????????????# #==* #?? | | % #????????????????????????"" """ +]!= +?? | | #????????????????????????"T """ #]#####+#?? | | #????????????????????????"" """??#%#???????? | | #???????????????????????? ????#]#???????? | | """ #????????????????????????##??????#]#???????? | | """ !#???????????????????????##########/###?????? | | """ #???????????????????????# #?????? | | """ #???????????????????????# #?????? | | #???????????????????????# ! #?????? | | #######???????????????????????# #?????? | | #?????????????????????????????# #?????? | | #?????????????????????????????# ! #?????? | | #???????????!?# ??????????????# #?????? | | #??????????? # ?????????????# #?????? | | #???????????? / ?????????????# #?????? | | #?????????????# ????????????# ! #?????? | | #?????????????# ???????????# #?????? | | #?????????????# ??????????# #?????? | | #?????????????# ###+#############;######?????? | | #?????????????# = !!%!! #???????? | | #?????????????# =%k !!! #???????? | | #?????????????# [k%[[* !!! #???????? | | #?????????????# =[!!k[ ####### | | #?????????????# !%%*%= | | #?????????????###### uu@%####################### | | #########??????# !#^ H# #????????????????????? | | ??????# ??# = ###????????????????????? | | #########?????????! ##?????????????????????? | | #??????????????? # % ##?????????????????????? | | #??????????????+ ?# * ##?????????????????????? | | #??????????????# ??# #??????????????????????? | | #??????????????# ???# w#??????????????????????? | | #??????????????#????# #??????????????????????? | | #???????????????????# #??????????????????????? | | ????????????????????# #??????????????????????? | | ????????????????????# ???????????????????????? | | ????????????????????# ???????????????????????? | | ????????????????????# ???????????????????????? | | ????????????????????# ???????????????????????? | | ????????????????????# ???????????????????????? | | ???????????????????? ???????????????????????? | | ????????????????????? ???????????????????????? | | ??????????????????????? ???????????????????????? | | ?????????????????????????????????????????????????? | | ?????????????????????????????????????????????????? | | ?????????????????????????????????????????????????? | | ?????????????????????????????????????????????????? | | ?????????????????????????????????????????????????? | | ?????????????????????????????????????????????????? | +----------------------------------------------------+ Best States ------------- Heat Dissipation 93 Energy Generation 60 Energy Capacity 1760 Matter Stores 300 Matter Capacity 300 Sight Range 18 Robot Scan Range 20 Terrain Scan Density 10 Armor Coverage 1200 Resistance: KI 15 Resistance: TH 30 Resistance: EM 15 Melee Speed Boost 40 Evasion (%) 75 Targeting Accuracy 10 Melee Accuracy 12 Core Analysis 6 Armor Integrity Analysis 50 Recoil Reduction 3 Offensive Hacking 39 Defensive Hacking 15 Item Schematics ----------------- ECM Suite | -10/Mines | Hacked Scythe | -8/Materials | Hacked Airjet | -8/Materials | Hacked Combat Drone Bay | -7/Data Miner | Free Lgt. Regenerative Plating | -7/Data Miner | Free Gravity Neutralizer | -7/Data Miner | Free Linear Gravjet | -7/Data Miner | Free Adv. Hacking Suite | -7/Data Miner | Free Hyb. Fission Core | -6/Factory | Hacked Tactical Coordination Suite | -6/Zion | Free Imp. Proton Missile Launcher | -6/Zion | Archive Disruptor Cannon | -6/Zion | Archive Arm. Leg | -6/Zion | Archive Wave Gun | -6/Zion | Archive Lrn. Missile Launcher | -6/Zion | Archive Imp. Remote Datajack | -6/Zion | Archive 0b10 Decoder Chip [Skirmisher] | -6/Zion | Archive Point Defense Array | -6/Zion | Archive Adv. Reaction Control System | -6/Zion | Archive Mak. Cloaking Device | -6/Zion | Archive Hvy. Phase Cannon | -6/Zion | Archive Adv. Field Recycling Unit | -6/Zion | Archive Proton Cannon | -6/Zion | Archive Hvy. Flak Cannon | -6/Zion | Archive Cmb. Antigrav System | -5/Factory | Hacked Adv. Actuator Array | -5/Factory | Hacked Lrn. Sensor Array | -5/Factory | Hacked Adv. Hardlight Generator | -5/Extension | Hacked Imp. Antigrav System | -5/Extension | Hacked Mni. Smartbomb Launcher | -4/Factory | Scanalyzed Adv. System Restoration Module | -4/Factory | Scanalyzed Imp. Force Field | -4/Factory | Hacked Robot Schematics ------------------ O-24 Administrator | -7/Data Miner | Free E-15 Imp | -6/Zion | Archive G-50 Soldier | -6/Zion | Archive H-77 Assassin | -6/Zion | Archive Fabricated ------------ Airjet | x2 | -7/Factory Thunder Hammer | x1 | -7/Factory | Preloaded Linear Gravjet | x2 | -6/Factory Linear Gravjet | x2 | -6/Factory Hyb. Fission Core | x2 | -6/Factory Mni. Smartbomb Launcher | x1 | -5/Factory | Preloaded Adv. Reaction Control System | x1 | -5/Factory Adv. Actuator Array | x1 | -5/Factory Lrn. Sensor Array | x1 | -5/Factory Imp. Force Field | x2 | -4/Factory Alien Tech Used ----------------- Core Expander Achievements -------------- None Challenges ------------ None RPGLIKE | -11 -10 -10 -10 -9 -8 -7 -7 -7 -7 -6 -6 -6 -6 -6 -6 -5 -5 -5 -5 -5 -5 -4 --------- Run | Yrd Mat Min Exi Min Mat Fac Low Low Dat Pro Fac Low Low Zio Dee Pro Fac Ext Cet Arc Hub Fac Levels Raised 25 | . . 2 . 1 4 4 . 1 . 2 3 1 . 1 . 1 1 2 . . 1 1 XP Earned 41498 | 3000 1040 2155 200 1308 5800 6241 700 1250 650 2915 4731 856 581 204 363 1394 2543 1849 478 223 1452 1565 XP Spent 40495 | 1750 800 2670 . 1400 6410 5900 . 2045 . 2800 4635 1585 . 1400 . 700 2000 3400 . . . 3000 Upgrades 65 | 4 1 8 . 2 16 6 . 2 . 2 9 4 . 2 . 1 2 2 . . . 4 Power Slot 3 | . . . . . . . . . . 1 . 1 . . . . . . . . . 1 Propulsion Slot 5 | 1 . . . . 2 1 . . . . 1 . . . . . . . . . . . Utility Slot 8 | 1 1 . . 1 1 1 . 1 . 1 . . . . . . . 1 . . . . Weapon Slot 4 | 1 . 1 . . 1 1 . . . . . . . . . . . . . . . . Core Integrity 5 | . . . . . 2 . . 1 . . 1 1 . . . . . . . . . . Heat Dissipation 7 | . . 2 . . 2 . . . . . 2 1 . . . . . . . . . . Energy Generation 3 | . . . . . . 1 . . . . . 1 . 1 . . . . . . . . Mass Support 2 | . . . . . 1 . . . . . 1 . . . . . . . . . . . Inventory Capacity 4 | 1 . 2 . . . . . . . . . . . . . . 1 . . . . . Sight Range 2 | . . 1 . 1 . . . . . . . . . . . . . . . . . . Sensor Range 1 | . . . . . 1 . . . . . . . . . . . . . . . . . Melee Accuracy 7 | . . . . . 3 . . . . . 1 . . 1 . 1 . . . . . 1 Hack Attack % 5 | . . 1 . . 1 1 . . . . 1 . . . . . 1 . . . . . Hack Defense % 3 | . . 1 . . . 1 . . . . . . . . . . . 1 . . . . KI Resistance % 3 | . . . . . 1 . . . . . 1 . . . . . . . . . . 1 TH Resistance % 3 | . . . . . 1 . . . . . 1 . . . . . . . . . . 1 Protomatter Created 5346 | . 107 239 . 117 183 808 97 56 175 269 436 125 227 . 288 180 641 304 129 84 182 699 Integrity Restored 8119 | . 175 624 . 314 395 1182 15 163 258 1051 705 358 476 . 294 48 853 581 146 . 64 417 Core 5620 | . 126 470 . 251 246 960 15 131 258 746 353 226 310 . 161 17 487 407 84 . 45 327 Parts 2499 | . 49 154 . 63 149 222 . 32 . 305 352 132 166 . 133 31 366 174 62 . 19 90 Protomatter Decayed 3345 | . 46 23 . 64 30 400 92 . . 11 176 . 71 . 284 86 456 295 121 128 667 395 Game ------ Seed FortressLongswordCloak Manual? 0 Play Time 04:39:57 Cumulative 533.4 hours Start 2024.08.02 @ 14:46:08 End 2024.08.02 @ 19:58:59 Sessions 14 Manual Loads 0 Difficulty Rogue Special Mode Winter2019/RPGLIKE Game No. 270 Rogue 270 Adventurer 0 Explorer 0 Win Type - Total 35 Types 22/2/3/3/1/1/1/1/1 Lore% 93 Gallery% 99 Achievement% 98 Wizard Run 0 Options --------- Layout 2 ASCII 0 Keyboard 0 Movement Numpad Keybinds 0 Fullscreen 1 Font 24/Smallcaps Map View 50x44 Zoom Use 0% Tactical HUD 1 Map Filters NONE Filters NONE Steam 1 RUN: 8400a0a5-2844-4ce1-87c4-39aea4e9b8ec